fUST/lending_fUST_20250610
["ID","MTS","AMOUNT","RATE_DAILY","PERIOD"]
[365197935,1749529796647,-255.6404125,0.000189,2]
[365197936,1749529798778,-166.5461409,0.000189,2]
[365197937,1749529800427,-222.25790411,0.00018667,2]
[365197938,1749529805126,-311.69021767,0.00018667,2]
[365197939,1749529808360,-263.39421964,0.00018667,2]
[365197940,1749529812563,-255.11607998,0.00018667,2]
[365197941,1749529814762,-277.46332939,0.00018667,2]
[365197942,1749529821113,-221.71357071,0.00018667,2]
[365197943,1749529824303,-158.96908279,0.00018667,2]
[365197944,1749529829070,-163.484949,0.00018667,2]
[365197956,1749529831836,-337.31728285,0.00018667,2]
[365197957,1749529831850,-2712.39151739,0.00018667,2]
[365197958,1749529831863,-76.20184647,0.00018667,2]
[365197959,1749529831875,-264.23567516,0.00018856,2]
[365197960,1749529831886,-181.15156572,0.000189,2]
[365197962,1749529831899,-325.05563696,0.000189,2]
[365197964,1749529831911,-218.33645691,0.000189,2]
[365197966,1749529831921,-280.183603,0.00018956,2]
[365197968,1749529831930,-1200.0,0.0001925,2]
[365197971,1749529832140,-229.79349347,0.00019251,2]
[365197972,1749529832159,-373.70992508,0.00019251,2]
[365197973,1749529832171,-321.3748941,0.00019251,2]
[365197974,1749529832181,-300.0,0.00019844,2]
[365197975,1749529832190,-300.0,0.00019844,2]
[365197976,1749529832199,-300.0,0.00019844,2]
[365197977,1749529832211,-40536.28860557,0.00019844,2]
[365197978,1749529832220,-22366.4158942,0.00019846,2]
[365197979,1749529832229,-165.31934817,0.00019975,2]
[365197980,1749529832238,-716.85,0.00020072,2]
[365197981,1749529832247,-1228.585293,0.00020185,2]
[365197982,1749529832256,-170.333,0.00020248,2]
[365197983,1749529832265,-165.88778093,0.00020248,2]
[365197984,1749529832275,-198.2618983,0.00020446,2]
[365197985,1749529832284,-165.3193481,0.00020635,2]
[365197986,1749529832294,-816.46750296,0.000209,4]
[365197987,1749529832303,-1205.74910315,0.00020995,2]
[365197988,1749529832313,-10000.0,0.00021,5]
[365197989,1749529832322,-5000.0,0.00021025,2]
[365197990,1749529832331,-1433.69,0.00021028,2]
[365197991,1749529832341,-816.46750281,0.00021038,4]
[365197992,1749529832351,-375.54,0.00021094,2]
[365197993,1749529832361,-160.0,0.00021094,2]
[365197994,1749529832370,-460.0,0.00021095,4]
[365197995,1749529832380,-460.0,0.00021095,4]
[365197996,1749529832390,-460.0,0.00021095,4]
[365197997,1749529832399,-460.0,0.00021095,4]
[365197998,1749529832409,-460.0,0.00021095,4]
[365197999,1749529832419,-160.70572206,0.00021095,4]
[365198000,1749529832429,-460.0,0.00021095,4]
[365198001,1749529832438,-430.30848781,0.00021095,4]
[365198002,1749529832448,-500.0,0.00021095,4]
[365198003,1749529832461,-460.0,0.00021095,4]
[365198004,1749529832471,-342.3671315,0.00021095,4]
[365198005,1749529832487,-428.62645855,0.00021095,4]
[365198006,1749529832502,-460.0,0.00021095,4]
[365198007,1749529832512,-423.97515591,0.00021095,4]
[365198008,1749529832523,-460.0,0.00021095,4]
[365198009,1749529832532,-410.0,0.00021095,4]
[365198010,1749529832542,-460.0,0.00021095,4]
[365198011,1749529832552,-460.0,0.00021095,4]
[365198012,1749529832562,-334.8572003,0.00021095,4]
[365198013,1749529832571,-460.0,0.00021095,4]
[365198014,1749529832581,-411.73525701,0.00021095,4]
[365198015,1749529832590,-420.0,0.00021095,4]
[365198016,1749529832599,-429.27435669,0.00021095,4]
[365198017,1749529832608,-460.83697751,0.00021095,4]
[365198018,1749529832617,-460.0,0.00021095,4]
[365198019,1749529832627,-460.0,0.00021095,4]
[365198020,1749529832636,-328.1896884,0.00021095,4]
[365198021,1749529832646,-329.90026787,0.00021095,4]
[365198022,1749529832655,-420.70405248,0.00021095,4]
[365198023,1749529832664,-281.93536637,0.00021095,4]
[365198024,1749529832674,-460.0,0.00021095,4]
[365198025,1749529832683,-330.0,0.00021095,4]
[365198026,1749529832693,-410.0,0.00021095,4]
[365198027,1749529832702,-460.0,0.00021095,4]
[365198028,1749529832712,-460.0,0.00021095,4]
[365198029,1749529832721,-460.0,0.00021095,4]
[365198030,1749529832730,-460.0,0.00021095,4]
[365198031,1749529832740,-360.0,0.00021095,4]
[365198032,1749529832749,-460.0,0.00021095,4]
[365198033,1749529832758,-460.0,0.00021095,4]
[365198034,1749529832767,-460.0,0.00021095,4]
[365198035,1749529832776,-460.0,0.00021095,4]
[365198036,1749529832786,-598.85463126,0.00021095,4]
[365198037,1749529832795,-420.0,0.00021095,4]
[365198038,1749529832805,-460.0,0.00021095,4]
[365198039,1749529832814,-460.0,0.00021095,4]
[365198040,1749529832824,-460.0,0.00021095,4]
[365198041,1749529832833,-460.0,0.00021095,4]
[365198042,1749529832843,-460.0,0.00021095,4]
[365198043,1749529832852,-460.0,0.00021095,4]
[365198044,1749529832862,-460.0,0.00021095,4]
[365198045,1749529832871,-460.0,0.00021095,4]
[365198046,1749529832880,-460.0,0.00021095,4]
[365198047,1749529832889,-438.98240756,0.00021095,4]
[365198048,1749529832899,-460.0,0.00021095,4]
[365198049,1749529832908,-460.0,0.00021095,4]
[365198050,1749529832918,-460.0,0.00021095,4]
[365198051,1749529832927,-460.0,0.00021095,4]
[365198052,1749529832937,-460.0,0.00021095,4]
[365198053,1749529832946,-460.0,0.00021095,4]
[365198054,1749529832956,-460.0,0.00021095,4]
[365198055,1749529832965,-460.0,0.00021095,4]
[365198056,1749529832974,-460.0,0.00021095,4]
[365198057,1749529832984,-460.0,0.00021095,4]
[365198058,1749529832993,-410.0,0.00021095,4]
[365198059,1749529833003,-460.0,0.00021095,4]
[365198060,1749529833013,-460.0,0.00021095,4]
[365198061,1749529833023,-460.0,0.00021095,4]
[365198062,1749529833032,-460.0,0.00021095,4]
[365198063,1749529833045,-470.02176757,0.00021095,4]
[365198064,1749529833055,-460.0,0.00021095,4]
[365198065,1749529833064,-460.0,0.00021095,4]
[365198066,1749529833073,-460.0,0.00021095,4]
[365198067,1749529833083,-460.0,0.00021095,4]
[365198068,1749529833093,-475.22421166,0.00021095,4]
[365198069,1749529833103,-460.0,0.00021095,4]
[365198070,1749529833114,-460.0,0.00021095,4]
[365198071,1749529833127,-246.81774683,0.00021095,2]
[365198072,1749529833139,-423.22740252,0.00021095,4]
[365198073,1749529833151,-460.0,0.00021095,4]
[365198074,1749529833161,-460.0,0.00021095,4]
[365198075,1749529833171,-460.0,0.00021095,4]
[365198076,1749529833181,-460.0,0.00021095,4]
[365198077,1749529833191,-460.0,0.00021095,4]
[365198078,1749529833202,-460.0,0.00021095,4]
[365198079,1749529833212,-420.81380669,0.00021095,4]
[365198080,1749529833222,-460.0,0.00021095,4]
[365198081,1749529833233,-435.45798747,0.00021095,4]
[365198082,1749529833243,-460.0,0.00021095,4]
[365198083,1749529833253,-440.0,0.00021095,4]
[365198084,1749529833264,-410.0,0.00021095,4]
[365198085,1749529833275,-460.0,0.00021095,2]
[365198086,1749529833286,-460.0,0.00021095,4]
[365198087,1749529833296,-460.0,0.00021095,4]
[365198088,1749529833306,-460.0,0.00021095,4]
[365198089,1749529833316,-857.23,0.00021095,4]
[365198090,1749529833325,-460.0,0.00021095,4]
[365198091,1749529833335,-460.0,0.00021095,4]
[365198092,1749529833346,-466.70174163,0.00021095,4]
[365198093,1749529833355,-400.0,0.00021095,4]
[365198094,1749529833366,-1207.15,0.00021095,4]
[365198095,1749529833376,-426.47926211,0.00021095,4]
[365198096,1749529833386,-460.0,0.00021095,4]
[365198097,1749529833396,-405.85261774,0.00021095,4]
[365198098,1749529833407,-421.43360347,0.00021095,4]
[365198099,1749529833417,-1016.74,0.00021095,4]
[365198100,1749529833427,-460.0,0.00021095,4]
[365198101,1749529833437,-4907.82,0.00021095,4]
[365198102,1749529833448,-460.0,0.00021095,4]
[365198103,1749529833462,-460.0,0.00021095,4]
[365198104,1749529833472,-1012.9,0.00021095,4]
[365198105,1749529833483,-164.91084572,0.00021095,4]
[365198106,1749529833494,-1028.64,0.00021095,4]
[365198107,1749529833505,-1109.4,0.00021095,4]
[365198108,1749529833516,-460.0,0.00021095,4]
[365198109,1749529833526,-460.0,0.00021095,4]
[365198110,1749529833537,-738.58,0.00021095,4]
[365198111,1749529833548,-460.0,0.00021095,4]
[365198112,1749529833558,-460.0,0.00021095,4]
[365198113,1749529833569,-460.0,0.00021095,4]
[365198114,1749529833579,-1045.3,0.00021095,4]
[365198115,1749529833590,-402.99329424,0.00021095,4]
[365198116,1749529833602,-460.0,0.00021095,4]
[365198117,1749529833612,-460.0,0.00021095,4]
[365198118,1749529833622,-816.46750281,0.00021176,4]
[365198119,1749529833632,-165.3193481,0.00021296,2]
[365198120,1749529833641,-816.46750281,0.00021314,5]
[365198121,1749529833651,-500.0,0.00021345,2]
[365198122,1749529833661,-180.53834357,0.00021345,2]
[365198123,1749529833671,-500.0,0.00021345,2]
[365198124,1749529833680,-481.54,0.00021349,3]
[365198125,1749529833690,-240.77,0.00021349,3]
[365198126,1749529833699,-1926.17,0.00021359,3]
[365198127,1749529833712,-963.08,0.00021359,3]
[365198128,1749529833721,-722.34,0.00021359,3]
[365198129,1749529833731,-422.31836298,0.00021369,4]
[365198130,1749529833741,-460.0,0.00021369,4]
[365198131,1749529833751,-460.0,0.00021369,4]
[365198132,1749529833761,-427.98318598,0.00021369,4]
[365198133,1749529833770,-460.0,0.00021369,4]
[365198134,1749529833780,-362.13832868,0.00021369,4]
[365198135,1749529833790,-490.87769882,0.00021369,4]
[365198136,1749529833800,-421.50128124,0.00021369,4]
[365198137,1749529833809,-390.0,0.00021369,4]
[365198138,1749529833820,-233.49500189,0.00021369,4]
[365198139,1749529833829,-460.0,0.00021369,4]
[365198140,1749529833839,-400.0,0.00021369,4]
[365198141,1749529833848,-460.0,0.00021369,4]
[365198142,1749529833858,-350.0,0.00021369,4]
[365198143,1749529833867,-380.0,0.00021369,4]
[365198144,1749529833877,-153.23622115,0.00021369,4]
[365198145,1749529833887,-460.0,0.00021369,4]
[365198146,1749529833897,-339.61450717,0.00021369,4]
[365198147,1749529833907,-460.0,0.00021369,4]
[365198148,1749529833917,-460.0,0.00021369,4]
[365198149,1749529833927,-460.0,0.00021369,4]
[365198150,1749529833936,-334.46709446,0.00021369,4]
[365198151,1749529833946,-460.0,0.00021369,4]
[365198152,1749529833957,-460.0,0.00021369,4]
[365198153,1749529833967,-460.0,0.00021369,4]
[365198154,1749529833977,-460.0,0.00021369,4]
[365198155,1749529833987,-460.0,0.00021369,4]
[365198156,1749529833997,-460.0,0.00021369,4]
[365198157,1749529834011,-460.0,0.00021369,4]
[365198158,1749529834022,-460.0,0.00021369,4]
[365198159,1749529834032,-440.0,0.00021369,4]
[365198160,1749529834044,-300.0,0.00021369,4]
[365198161,1749529834054,-460.0,0.00021369,4]
[365198162,1749529834064,-340.0,0.00021369,4]
[365198163,1749529834075,-460.0,0.00021369,4]
[365198164,1749529834086,-460.0,0.00021369,4]
[365198165,1749529834096,-190.38,0.00021369,4]
[365198166,1749529834105,-460.0,0.00021369,4]
[365198167,1749529834116,-460.0,0.00021369,4]
[365198168,1749529834126,-460.0,0.00021369,4]
[365198169,1749529834136,-559.09,0.00021369,4]
[365198170,1749529834146,-460.0,0.00021369,2]
[365198171,1749529834156,-460.0,0.00021369,4]
[365198172,1749529834166,-857.23,0.00021369,4]
[365198173,1749529834175,-460.0,0.00021369,4]
[365198174,1749529834185,-300.03,0.00021369,4]
[365198175,1749529834195,-1207.15,0.00021369,4]
[365198176,1749529834205,-400.0,0.00021369,4]
[365198177,1749529834214,-1016.74,0.00021369,4]
[365198178,1749529834224,-460.0,0.00021369,4]
[365198179,1749529834234,-4907.82,0.00021369,4]
[365198180,1749529834243,-460.0,0.00021369,4]
[365198181,1749529834253,-1012.9,0.00021369,4]
[365198182,1749529834263,-1028.64,0.00021369,4]
[365198183,1749529834273,-1109.4,0.00021369,4]
[365198184,1749529834283,-460.0,0.00021369,4]
[365198185,1749529834293,-460.0,0.00021369,4]
[365198186,1749529834302,-738.58,0.00021369,4]
[365198187,1749529834312,-205.61300003,0.00021369,4]
[365198188,1749529834321,-460.0,0.00021369,4]
[365198189,1749529834331,-460.0,0.00021369,4]
[365198190,1749529834341,-1045.3,0.00021369,4]
[365198191,1749529834351,-460.0,0.00021369,4]
[365198192,1749529834360,-447.27879392,0.00021369,4]
[365198193,1749529834370,-502.03487798,0.00021429,2]
[365198194,1749529834380,-502.4612989,0.00021435,2]
[365198195,1749529834390,-816.46750281,0.00021452,5]
[365198196,1749529834400,-502.50371412,0.000215,2]
[365198197,1749529834410,-500.0,0.000215,2]
[365198198,1749529834419,-562.06,0.00021505,3]
[365198199,1749529834429,-451.61465739,0.00021528,2]
[365198200,1749529834439,-816.46750281,0.0002159,5]
[365198201,1749529834449,-207.4,0.00021605,2]
[365198202,1749529834461,-1688.0,0.00021605,2]
[365198203,1749529834471,-235.0,0.00021611,2]
[365198204,1749529834481,-420.0,0.00021611,2]
[365198205,1749529834491,-187.34,0.00021614,3]
[365198206,1749529834501,-1205.74910315,0.00021615,2]
[365198207,1749529834511,-374.68,0.00021633,3]
[365198208,1749529834520,-460.0,0.00021643,4]
[365198209,1749529834530,-331.16134899,0.00021643,4]
[365198210,1749529834540,-424.66,0.00021643,4]
[365198211,1749529834550,-448.74312294,0.00021643,4]
[365198212,1749529834559,-416.70027913,0.00021643,4]
[365198213,1749529834570,-460.0,0.00021643,4]
[365198214,1749529834580,-183.39854976,0.00021643,4]
[365198215,1749529834590,-460.0,0.00021643,4]
[365198216,1749529834599,-460.0,0.00021643,4]
[365198217,1749529834609,-460.0,0.00021643,4]
[365198218,1749529834619,-460.0,0.00021643,4]
[365198219,1749529834628,-460.0,0.00021643,4]
[365198220,1749529834638,-460.0,0.00021643,4]
[365198221,1749529834647,-460.0,0.00021643,4]
[365198222,1749529834656,-460.0,0.00021643,4]
[365198223,1749529834666,-460.0,0.00021643,4]
[365198224,1749529834675,-460.0,0.00021643,4]
[365198225,1749529834686,-460.0,0.00021643,2]
[365198226,1749529834695,-460.0,0.00021643,4]
[365198227,1749529834706,-857.23,0.00021643,4]
[365198228,1749529834715,-1207.15,0.00021643,4]
[365198229,1749529834725,-1016.74,0.00021643,4]
[365198230,1749529834734,-460.0,0.00021643,4]
[365198231,1749529834743,-4907.82,0.00021643,4]
[365198232,1749529834753,-317.97773408,0.00021643,4]
[365198233,1749529834763,-1012.9,0.00021643,4]
[365198234,1749529834773,-1028.64,0.00021643,4]
[365198235,1749529834782,-1109.4,0.00021643,4]
[365198236,1749529834791,-460.0,0.00021643,4]
[365198237,1749529834801,-738.58,0.00021643,4]
[365198238,1749529834810,-460.0,0.00021643,4]
[365198239,1749529834819,-460.0,0.00021643,4]
[365198240,1749529834829,-1045.3,0.00021643,4]
[365198241,1749529834838,-200.0,0.0002166,10]
[365198242,1749529834849,-200.0,0.0002166,10]
[365198243,1749529834858,-200.0,0.0002166,10]
[365198244,1749529834867,-200.0,0.0002166,10]
[365198245,1749529834877,-200.0,0.0002166,10]
[365198246,1749529834886,-200.0,0.0002166,10]
[365198247,1749529834896,-200.0,0.0002166,10]
[365198248,1749529834905,-200.0,0.0002166,10]
[365198249,1749529834915,-200.0,0.0002166,10]
[365198250,1749529834924,-200.0,0.0002166,10]
[365198251,1749529834933,-200.0,0.0002166,10]
[365198252,1749529834943,-200.0,0.0002166,10]
[365198253,1749529834953,-200.0,0.0002166,10]
[365198254,1749529834963,-200.0,0.0002166,10]
[365198255,1749529834973,-200.0,0.0002166,10]
[365198256,1749529834983,-200.0,0.0002166,10]
[365198257,1749529834992,-200.0,0.0002166,10]
[365198258,1749529835002,-200.0,0.0002166,10]
[365198259,1749529835011,-200.0,0.0002166,10]
[365198260,1749529835021,-200.0,0.0002166,10]
[365198261,1749529835030,-200.0,0.0002166,10]
[365198262,1749529835040,-200.0,0.0002166,10]
[365198263,1749529835053,-200.0,0.0002166,10]
[365198264,1749529835062,-200.0,0.0002166,10]
[365198265,1749529835072,-214.66453,0.0002166,10]
[365198266,1749529835083,-1790.36856873,0.0002166,2]
[365198267,1749529835093,-2320.92,0.000217,2]
[365198268,1749529835102,-816.46750281,0.00021728,5]
[365198269,1749529835112,-2008.0,0.0002181,7]
[365198270,1749529835122,-401.0,0.0002181,7]
[365198271,1749529835131,-401.0,0.0002181,7]
[365198272,1749529835140,-816.46750281,0.00021866,6]
[365198273,1749529835150,-460.0,0.00021917,4]
[365198274,1749529835271,-460.0,0.00021917,4]
[365198275,1749529835281,-460.0,0.00021917,4]
[365198276,1749529835292,-481.96,0.00021917,4]
[365198277,1749529835302,-460.0,0.00021917,4]
[365198278,1749529835311,-460.0,0.00021917,4]
[365198279,1749529835320,-460.0,0.00021917,4]
[365198280,1749529835330,-536.36,0.00021917,4]
[365198281,1749529835340,-225.9898967,0.00021917,4]
[365198282,1749529835350,-460.0,0.00021917,4]
[365198283,1749529835359,-460.0,0.00021917,4]
[365198284,1749529835369,-460.0,0.00021917,4]
[365198285,1749529835379,-857.23,0.00021917,4]
[365198286,1749529835388,-1207.15,0.00021917,4]
[365198287,1749529835398,-1016.74,0.00021917,4]
[365198288,1749529835408,-460.0,0.00021917,4]
[365198289,1749529835418,-4907.82,0.00021917,4]
[365198290,1749529835427,-1012.9,0.00021917,4]
[365198291,1749529835438,-1028.64,0.00021917,4]
[365198292,1749529835448,-1109.4,0.00021917,4]
[365198293,1749529835459,-460.0,0.00021917,4]
[365198294,1749529835468,-738.58,0.00021917,4]
[365198295,1749529835478,-460.0,0.00021917,4]
[365198296,1749529835487,-1045.3,0.00021917,4]
[365198297,1749529835496,-767.62,0.00021956,5]
[365198298,1749529835506,-165.3193481,0.00021956,2]
[365198299,1749529835515,-2150.54,0.00021983,2]
[365198300,1749529835524,-161.0,0.00022,2]
[365198301,1749529835534,-19909.51108858,0.00022,2]
[365198302,1749529835554,-1570.082566,0.00022,2]
[365198303,1749529835603,224.44067473,0.00018107,2]
[365198304,1749529836947,-110.24578973,0.00018107,2]
[365198313,1749529837768,-528.85,0.00021095,4]
[365198314,1749529837778,-460.0,0.00021095,4]
[365198315,1749529837788,-460.0,0.00021369,4]
[365198316,1749529837798,-36025.94320734,0.00022,2]
[365198317,1749529837808,-44284.09362124,0.00022,2]
[365198318,1749529837817,-4254.02721369,0.00022,7]
[365198319,1749529837827,-160.86915986,0.00022,2]
[365198320,1749529837837,-816.46750281,0.00022003,6]
[365198321,1749529837846,-213.1263252,0.00022015,2]
[365198322,1749529837856,-2008.0,0.00022044,7]
[365198323,1749529837865,-401.0,0.00022044,7]
[365198324,1749529837876,-401.0,0.00022044,7]
[365198325,1749529837885,-767.62,0.00022056,2]
[365198326,1749529837895,-160.0,0.00022085,2]
[365198327,1749529837904,-834.9046531,0.00022085,2]
[365198328,1749529837914,-842.5625,0.00022085,2]
[365198329,1749529837923,-229.6792923,0.00022085,2]
[365198330,1749529837933,-160.0,0.00022085,2]
[365198331,1749529837942,-424.12530924,0.00022085,2]
[365198332,1749529837951,-160.0,0.00022085,2]
[365198333,1749529837961,-160.0,0.00022088,2]
[365198334,1749529837970,-816.46750281,0.00022141,6]
[365198335,1749529837979,-767.62,0.00022156,3]
[365198336,1749529837988,-460.0,0.00022191,4]
[365198337,1749529837998,-243.85,0.00022191,4]
[365198338,1749529838007,-460.0,0.00022191,4]
[365198339,1749529838016,-460.0,0.00022191,4]
[365198340,1749529838026,-460.0,0.00022191,4]
[365198341,1749529838035,-857.23,0.00022191,4]
[365198342,1749529838046,-1207.15,0.00022191,4]
[365198343,1749529838055,-1016.74,0.00022191,4]
[365198344,1749529838065,-460.0,0.00022191,4]
[365198345,1749529838074,-4907.82,0.00022191,4]
[365198346,1749529838084,-1012.9,0.00022191,4]
[365198347,1749529838094,-1028.64,0.00022191,4]
[365198348,1749529838104,-1109.4,0.00022191,4]
[365198349,1749529838114,-460.0,0.00022191,4]
[365198350,1749529838125,-738.58,0.00022191,4]
[365198351,1749529838135,-460.0,0.00022191,4]
[365198352,1749529838144,-1045.3,0.00022191,4]
[365198353,1749529838153,-1205.74910315,0.00022234,2]
[365198354,1749529838163,-767.62,0.00022256,2]
[365198355,1749529838172,-2008.0,0.00022278,7]
[365198356,1749529838181,-401.0,0.00022278,7]
[365198357,1749529838191,-401.0,0.00022278,7]
[365198358,1749529838200,-816.46750281,0.00022279,6]
[365198359,1749529838210,-767.62,0.00022356,5]
[365198360,1749529838220,-548.89,0.000224,7]
[365198361,1749529838229,-816.46750281,0.00022417,7]
[365198362,1749529838238,-767.62,0.00022456,5]
[365198363,1749529838248,-460.0,0.00022465,4]
[365198364,1749529838262,-460.0,0.00022465,4]
[365198365,1749529838272,-460.0,0.00022465,4]
[365198366,1749529838281,-460.0,0.00022465,4]
[365198367,1749529838291,-857.23,0.00022465,4]
[365198368,1749529838300,-1207.15,0.00022465,4]
[365198369,1749529838310,-1016.74,0.00022465,4]
[365198370,1749529838319,-269.4,0.00022465,4]
[365198371,1749529838329,-4907.82,0.00022465,4]
[365198372,1749529838338,-1012.9,0.00022465,4]
[365198373,1749529838349,-1028.64,0.00022465,4]
[365198374,1749529838358,-1109.4,0.00022465,4]
[365198375,1749529838368,-460.0,0.00022465,4]
[365198376,1749529838378,-738.58,0.00022465,4]
[365198377,1749529838387,-158.25,0.00022465,4]
[365198378,1749529838397,-1045.3,0.00022465,4]
[365198379,1749529838406,-2008.0,0.00022513,7]
[365198380,1749529838415,-401.0,0.00022513,7]
[365198381,1749529838425,-401.0,0.00022513,7]
[365198382,1749529838434,-816.46750281,0.00022555,7]
[365198383,1749529838444,-767.62,0.00022556,3]
[365198384,1749529838454,-165.3193481,0.00022617,2]
[365198385,1749529838463,-767.62,0.00022656,3]
[365198386,1749529838474,-816.46750281,0.00022693,7]
[365198387,1749529838484,-963.08,0.00022719,3]
[365198388,1749529838494,-481.54,0.00022719,3]
[365198389,1749529838503,-3852.34,0.00022729,3]
[365198390,1749529838513,-1926.16,0.00022729,3]
[365198391,1749529838523,-460.0,0.00022739,4]
[365198392,1749529838534,-460.0,0.00022739,4]
[365198393,1749529838543,-460.0,0.00022739,4]
[365198394,1749529838553,-460.0,0.00022739,4]
[365198395,1749529838563,-857.23,0.00022739,4]
[365198396,1749529838687,-1207.15,0.00022739,4]
[365198397,1749529838698,-1016.74,0.00022739,4]
[365198398,1749529838709,-4907.82,0.00022739,4]
[365198399,1749529838719,-1012.9,0.00022739,4]
[365198400,1749529838729,-1028.64,0.00022739,4]
[365198401,1749529838739,-1109.4,0.00022739,4]
[365198402,1749529838750,-460.0,0.00022739,4]
[365198403,1749529838760,-738.58,0.00022739,4]
[365198404,1749529838770,-1045.3,0.00022739,4]
[365198405,1749529838780,-2008.0,0.00022747,7]
[365198406,1749529838791,-401.0,0.00022747,7]
[365198407,1749529838801,-401.0,0.00022747,7]
[365198408,1749529838811,-767.62,0.00022756,5]
[365198409,1749529838821,-163.7222236,0.00022795,2]
[365198410,1749529838831,-816.46750281,0.00022831,8]
[365198411,1749529838842,-2878.0885611,0.00022845,2]
[365198412,1749529838852,-1205.74910315,0.00022854,2]
[365198413,1749529838862,-767.62,0.00022856,2]
[365198414,1749529838871,-2867.38,0.00022939,2]
[365198415,1749529838881,-2160.0,0.00022946,2]
[365198416,1749529838890,-653.0,0.00022946,2]
[365198417,1749529838900,-465.294,0.00022946,2]
[365198418,1749529838909,-152.006554,0.0002295,7]
[365198419,1749529838919,-151.0,0.0002295,7]
[365198420,1749529838928,-257.126411,0.0002295,7]
[365198421,1749529838938,-261.256242,0.0002295,7]
[365198422,1749529838948,-7067.42810208,0.0002295,7]
[365198423,1749529838957,-7067.42810208,0.0002295,7]
[365198424,1749529838967,-7067.42850208,0.0002295,7]
[365198425,1749529838977,-7067.42850208,0.0002295,7]
[365198426,1749529838987,-767.62,0.00022956,7]
[365198427,1749529838996,-816.46750281,0.00022969,8]
[365198428,1749529839005,-500.0,0.00022973,2]
[365198429,1749529839015,-500.0,0.00022973,2]
[365198430,1749529839025,-500.0,0.00022973,2]
[365198431,1749529839034,-507.91466464,0.00022973,2]
[365198432,1749529839044,-500.0,0.00022973,2]
[365198433,1749529839056,-500.0,0.00022973,2]
[365198434,1749529839066,-500.0,0.00022973,2]
[365198435,1749529839075,-600.0,0.00022973,2]
[365198436,1749529839084,-215.0738,0.00022974,2]
[365198437,1749529839095,-2008.0,0.00022981,7]
[365198438,1749529839104,-401.0,0.00022981,7]
[365198439,1749529839113,-401.0,0.00022981,7]
[365198440,1749529839123,-374.68,0.00022984,3]
[365198441,1749529839132,-398406.94044691,0.0002299,2]
[365198442,1749529839141,-500.0,0.00022999,2]
[365198443,1749529839150,-500.0,0.00022999,2]
[365198444,1749529839160,-500.0,0.00022999,2]
[365198445,1749529839170,-500.0,0.00022999,2]
[365198446,1749529839179,-500.0,0.00022999,2]
[365198447,1749529839189,-500.0,0.00022999,2]
[365198448,1749529839199,-547.87779502,0.00022999,2]
[365198449,1749529839209,-500.0,0.00022999,2]
[365198450,1749529839219,-500.0,0.00022999,2]
[365198451,1749529839228,-500.0,0.00022999,2]
[365198452,1749529839238,-500.0,0.00022999,2]
[365198453,1749529839247,-500.0,0.00022999,2]
[365198454,1749529839257,-500.0,0.00022999,2]
[365198455,1749529839267,-500.0,0.00022999,2]
[365198456,1749529839276,-500.0,0.00022999,2]
[365198457,1749529839286,-565.66738774,0.00022999,2]
[365198458,1749529839295,-500.0,0.00022999,2]
[365198459,1749529839304,-500.0,0.00022999,2]